Cogmind - Beta 15 *** ADVENTURER MODE // 2025.10.12 @ 11:01:45 Player: Gentle Jesus Result: Destroyed by P-80 Master with Gamma Rifle Performance ------------- Evolutions (8) 4000 Regions Visited (22) 4400 Robots Destroyed (133) 665 Value Destroyed (5894) 5894 Prototype IDs (20) 400 Alien Tech Used (0) 0 Bonus (3456) 3456 TOTAL SCORE: 18815 Bonus ------- Follower Combat Kills 1953 Entered DSFs 500 Network Hubs Disabled 200 Met Data Miner 300 Built Enhanced Grunts 300 Met R17 at Cetus 500 Friendly Fire -297 Cogmind --------- Core Integrity 0/1450 Matter 219/300 Energy 98/100 System Corruption 26% Temperature Cool (0) Movement Core (50) Location -2/Research Parts ------- > --- POWER (2) -------- (None) > --- PROPULSION (7) --- (None) > --- UTILITY (11) ----- Enhanced Optical Array Improved Target Analyzer Advanced Target Analyzer > --- WEAPON (3) ------- (None) > --- INVENTORY (5) ---- Neutrino Core Energy Well (350) Medium Matter Pod (100) Peak State ------------ > --- POWER ------------ Quantum Reactor Light Quantum Reactor > --- PROPULSION ------- Centrium Leg Centrium Leg Centrium Leg Centrium Leg Centrium Leg Centrium Leg Centrium Leg > --- UTILITY ---------- Advanced Heat Sink Advanced Heat Sink Energy Well Matter Compressor Enhanced Optical Array Seismic Detector Targeting Computer Improved Target Analyzer Advanced Target Analyzer Advanced Target Analyzer Energy Filter > --- WEAPON ----------- Nova Cannon Enhanced Nova Cannon Hardcell Cannon > --- INVENTORY -------- Micro Antimatter Reactor Improved Thunder Leg Medium Matter Pod Enhanced Nova Cannon Ragnarok Missile Launcher [Rating: 158] Favorites ----------- Power Neutrino Core Engine Heavy Deuterium Engine Power Core Neutrino Core Reactor Antimatter Reactor Propulsion Wheel Treads Light Treads Leg Centrium Leg Wheel Wheel Utility Improved Signal Interpreter Device Structural Scanner Storage Medium Storage Unit Processor Improved Signal Interpreter Protection Improved Medium Armor Plating Weapon Cooled Particle Cannon Energy Gun Gatling Laser Energy Cannon Cooled Particle Cannon Ballistic Gun Advanced KE Penetrator Ballistic Cannon Mini Assault Cannon Launcher Heavy Missile Launcher Build | -11 -10 -10 -10 -9 -8 -7 -7 -7 -7 -6 -6 -6 -6 -6 -6 -5 -5 -5 -4 -3 -3 -2 ------- Run | Yrd Mat Min Exi Min Mat Fac Low Low Dat Pro Fac Ext Cet Arc Hub Fac Was Fac Fac Res DSF Res Slots Evolved 16 | . . . . . 4 2 . . . . 2 . . . . 2 . . 2 2 . 2 Power 1 | . . . . . . . . . . . . . . . . 1 . . . . . . Propulsion 5 | . . . . . 4 . . . . . . . . . . . . . . . . 1 Utility 9 | . . . . . . 2 . . . . 2 . . . . . . . 2 2 . 1 Weapon 1 | . . . . . . . . . . . . . . . . 1 . . . . . . Parts Attached 124 | 7 3 4 1 . 8 4 1 . . 1 19 12 3 2 3 6 2 . 10 . 11 27 Power 19 | 1 . 1 . . 1 . . . . . 2 2 . . 1 1 1 . 2 . 1 6 Engine 7 | 1 . 1 . . 1 . . . . . 2 1 . . . . . . . . . 1 Core 4 | . . . . . . . . . . . . 1 . . . 1 . . . . 1 1 Reactor 8 | . . . . . . . . . . . . . . . 1 . 1 . 2 . . 4 Propulsion 37 | 2 . 1 . . 5 1 . . . . 5 6 1 1 . . 1 . 2 . 6 6 Treads 8 | . . . . . . . . . . . . 3 1 1 . . 1 . 2 . . . Leg 12 | . . . . . . . . . . . . . . . . . . . . . 6 6 Wheel 17 | 2 . 1 . . 5 1 . . . . 5 3 . . . . . . . . . . Hover . | . . . . . . . . . . . . . . . . . . . . . . . Flight . | . . . . . . . . . . . . . . . . . . . . . . . Utility 32 | 2 . 1 1 . . 2 . . . . 6 2 1 . 1 2 . . 4 . 1 9 Device 15 | 1 . 1 . . . 1 . . . . 3 1 . . 1 . . . 3 . . 4 Storage 8 | 1 . . 1 . . . . . . . 1 1 . . . . . . 1 . 1 2 Processor 8 | . . . . . . 1 . . . . 2 . 1 . . 1 . . . . . 3 Hackware . | . . . . . . . . . . . . . . . . . . . . . . . Protection 1 | . . . . . . . . . . . . . . . . 1 . . . . . . Artifact . | . . . . . . . . . . . . . . . . . . . . . . . Weapon 36 | 2 3 1 . . 2 1 1 . . 1 6 2 1 1 1 3 . . 2 . 3 6 Energy Gun 4 | 2 . . . . . . . . . . . 1 . . . . . . 1 . . . Energy Cannon 14 | . 3 . . . 1 . . . . . 2 . . . . 2 . . 1 . . 5 Ballistic Gun 3 | . . . . . . . . . . . 1 . 1 . . 1 . . . . . . Ballistic Cannon 6 | . . . . . . 1 . . . . 2 1 . 1 . . . . . . . 1 Launcher 9 | . . 1 . . 1 . 1 . . 1 1 . . . 1 . . . . . 3 . Special Weapon . | . . . . . . . . . . . . . . . . . . . . . . . Impact Weapon . | . . . . . . . . . . . . . . . . . . . . . . . Slashing Weapon . | . . . . . . . . . . . . . . . . . . . . . . . Piercing Weapon . | . . . . . . . . . . . . . . . . . . . . . . . Special Melee Weapon . | . . . . . . . . . . . . . . . . . . . . . . . Unidentified Prototypes 9 | . 1 . . . 2 1 . . . . 1 . 2 . . . . . . . 1 1 Parts Lost 88 | . . 3 . . 1 . . . . 2 11 10 3 . 9 1 . . 14 . 3 31 Power 12 | . . 1 . . . . . . . . 2 . . . 2 . . . 2 . . 5 Propulsion 34 | . . 1 . . 1 . . . . 2 7 5 . . 4 . . . 3 . . 11 Utility 21 | . . 1 . . . . . . . . 1 2 1 . 1 1 . . 4 . 2 8 Weapon 21 | . . . . . . . . . . . 1 3 2 . 2 . . . 5 . 1 7 Highest Loss Streak 9 | . . 2 . . 1 . . . . 2 4 4 2 . 9 1 . . 8 . 1 9 To Critical Strikes 5 | . . . . . . . . . . . . . . . . . . . 1 . 1 3 Average Backups 10 | 1 7 6 5 7 13 17 20 20 21 21 18 6 6 7 9 5 6 8 6 2 2 4 Power 1 | . 1 . . . 1 3 3 3 3 3 2 . 2 3 2 . 1 1 1 1 . . Propulsion . | . 3 2 1 1 . 1 2 2 2 2 . . . . . . . 2 . . . . Utility 4 | . 2 1 2 4 6 8 10 10 11 11 8 1 1 1 4 4 4 4 3 1 . 1 Weapon 3 | . 1 2 2 2 4 5 5 5 5 5 6 4 2 3 3 . 1 1 . . 1 2 Tool/Special . | . . . . . . . . . . . . . . . . . . . . . . . Unused Backups 21 | . . . 1 . . 2 . . . . 9 . . . 1 1 1 . 3 . 1 2 Power 6 | . . . . . . . . . . . 2 . . . 1 . 1 . 1 . . 1 Propulsion 2 | . . . 1 . . . . . . . . . . . . . . . 1 . . . Utility 9 | . . . . . . 1 . . . . 6 . . . . . . . 1 . . 1 Weapon 4 | . . . . . . 1 . . . . 1 . . . . 1 . . . . 1 . Tool/Special . | . . . . . . . . . . . . . . . . . . . . . . . Average Slot Usage (%) 78 | . 98 95 89 85 87 91 92 92 92 88 75 74 80 89 87 63 69 76 76 23 41 73 Engine 3 | . 14 12 14 14 9 7 7 7 7 7 5 4 . . . . . . . . . . Core 1 | . . . . . . . . . . . . 1 6 6 5 4 5 5 1 . 2 1 Reactor 1 | . . . . . . . . . . . . . . . . . 2 5 6 . . 4 Treads 5 | . . . . . . . . . . . . 3 21 29 30 5 7 11 13 . . . Leg 4 | . . . . . . . . . . . . . . . . . . . . . 12 24 Wheel 15 | . 28 26 28 28 51 46 46 46 46 42 22 12 . . . . . . . . . . Device 10 | . 14 12 3 . . 7 7 7 7 7 13 21 13 13 12 9 5 5 9 4 2 7 Storage 6 | . 14 14 14 14 9 7 7 7 7 7 5 4 6 6 6 5 5 5 4 . 2 8 Processor 13 | . . . . . . 6 7 7 7 7 12 13 18 20 20 18 23 23 21 19 14 18 Energy Cannon 6 | . 23 24 28 28 17 9 7 7 7 7 7 3 . . . 4 5 5 5 . . 4 Ballistic Gun 2 | . . . . . . . . . . . . . 1 6 5 10 11 11 7 . . . Ballistic Cannon 2 | . . . . . . 5 . 7 7 6 4 4 . 5 5 . . . . . . 2 Peak Build Rating 158 | 7 12 11 11 12 26 35 35 35 35 35 48 45 55 59 61 63 85 85 109 17 106 158 Average Rating 57 | 4 11 10 10 11 21 33 34 35 35 34 44 36 37 57 58 57 73 85 90 16 57 116 On Entrance 36 | . 7 12 11 11 12 25 35 34 35 35 33 45 32 55 59 32 63 85 85 16 17 97 Naked Turns . | . . . . . . . . . . . . . . . . . . . . . . . Heaviest Build 227 | 12 17 19 213 213 222 223 226 223 223 223 227 41 39 41 48 49 64 64 146 1 59 95 Greatest Support 220 | 26 26 26 26 26 66 60 60 60 60 60 68 63 143 166 166 80 150 150 220 3 180 210 Greatest Overweight (x) 11 | 1 . 1 8 8 4 3 3 3 3 5 5 11 . . . . . . 4 . 4 1 Average Overweight (x) 1 | . . . 4 8 3 3 3 3 3 3 3 . . . . . . . . . . . Largest Inventory Capacity 35 | 8 8 8 35 35 35 35 35 35 35 35 35 10 10 10 10 10 10 10 25 5 5 10 Average Capacity 19 | 7 8 8 27 35 35 35 35 35 35 35 32 8 10 10 10 10 10 10 16 5 5 7 Most Carried 22 | 7 8 8 7 9 17 21 21 22 22 22 22 9 7 9 10 8 10 10 10 4 4 9 Average Carried 10 | 1 7 6 5 7 13 18 21 21 22 22 18 6 6 7 9 5 7 10 7 2 2 4 Final Capacity 35 | 8 8 8 35 35 35 35 35 35 35 35 5 10 10 10 10 10 10 10 5 5 5 5 Final Carried 22 | 7 8 5 7 9 17 21 21 22 22 22 5 7 7 9 9 6 10 10 2 4 2 3 Class Distribution -------------------- 23% | Hauler-Mutant 16% | Scavenger-Mutant 14% | Hauler-Skirmisher 11% | Scavenger-Tank 9% | Scavenger-Gunner 9% | Mutant 7% | Scavenger-Skirmisher 3% | Commander-Skirmisher Dominant Class ---------------- Mutant | -10/Materials Mutant | -10/Mines Hauler-Mutant | -10/Exiles Hauler-Mutant | -9/Mines Hauler-Mutant | -8/Materials Hauler-Mutant | -7/Factory Hauler-Mutant | -7/Lower Caves Hauler-Mutant | -7/Lower Caves Hauler-Mutant | -7/Data Miner Hauler-Mutant | -6/Proximity Caves Hauler-Skirmisher | -6/Factory Commander-Skirmisher | -6/Extension Scavenger-Mutant | -6/Cetus Scavenger-Mutant | -6/Archives Scavenger-Skirmisher | -6/Hub_04(d) Scavenger-Tank | -5/Factory Scavenger-Gunner | -5/Waste Scavenger-Gunner | -5/Factory Scavenger-Tank | -4/Factory Mutant | -3/Research Mutant | -3/DSF Scavenger-Mutant | -2/Research Resources | -11 -10 -10 -10 -9 -8 -7 -7 -7 -7 -6 -6 -6 -6 -6 -6 -5 -5 -5 -4 -3 -3 -2 ----------- Run | Yrd Mat Min Exi Min Mat Fac Low Low Dat Pro Fac Ext Cet Arc Hub Fac Was Fac Fac Res DSF Res Matter Collected 4270 | 270 . . 85 23 161 82 38 40 . 83 631 423 133 63 177 189 28 . 500 . . 1344 Remotely 238 | . . . . . . . . . . . . . . . . . . . 238 . . . Salvage Created 6220 | 132 17 43 . 23 328 82 41 65 . 71 1217 651 12 65 362 113 . . 841 . 406 1751 Parts 298 | 9 . 5 . 3 17 5 2 3 . . 46 20 1 5 20 12 . . 36 . 14 100 Haulers Intercepted 3 | . . . . . . . . . . . 2 . . . . . . . . . . 1 Recyclers Shooed 5 | . . . . . . . . . . . 2 1 . . . . . . 1 . . 1 Parts Field Recycled . | . . . . . . . . . . . . . . . . . . . . . . . Retrieved Matter . | . . . . . . . . . . . . . . . . . . . . . . . Parts Self-Destructed 5 | . . . . . . . 3 2 . . . . . . . . . . . . . . Prevented 4 | . . . . . . . 1 3 . . . . . . . . . . . . . . Kills | -11 -10 -10 -10 -9 -8 -7 -7 -7 -7 -6 -6 -6 -6 -6 -6 -5 -5 -5 -4 -3 -3 -2 ------- Run | Yrd Mat Min Exi Min Mat Fac Low Low Dat Pro Fac Ext Cet Arc Hub Fac Was Fac Fac Res DSF Res Combat Hostiles Destroyed 92 | . . 4 . . 5 1 3 1 . 3 21 9 . 1 8 2 . . 10 . 6 18 Guns 10 | . . . . . . . . . . . . 2 . . 4 . . . 4 . . . Cannons 53 | . . 2 . . 4 1 . 1 . 3 15 6 . 1 . 2 . . 6 . . 12 AOE 26 | . . 2 . . 1 . 3 . . . 5 1 . . 4 . . . . . 6 4 Classes Destroyed 16 | 2 1 2 . 1 2 . . . . 1 5 . . . 1 . . . . . 1 . Worker 11 | . . . . 1 2 1 . . . . . . . . 3 . . . 2 . . 2 Builder 6 | . . . . . . . . . . . 1 . . . . . . . . . . 5 Tunneler 4 | 3 . . . . . . . . . . 1 . . . . . . . . . . . Hauler 3 | . . . . . . . . . . . 2 . . . . . . . . . . 1 Recycler 8 | 1 . . . . . . . . . . . 2 . . . . . . 2 . . 3 Mechanic 1 | . . . . . . . . . . . 1 . . . . . . . . . . . Watcher 9 | . 1 . . . 2 1 . . . . 1 1 1 . 1 . . . 1 . . . Swarmer 15 | . . 3 . . . . 3 . . . . 1 . . 4 . . . 4 . . . Grunt 30 | . . . . . 3 . . . . 2 15 4 . . 2 . . . 1 . 3 . Duelist 1 | . . . . . . . . . . 1 . . . . . . . . . . . . Sentry 14 | . . . . . 2 1 . 1 . . 2 4 . 1 . . . . 3 . . . Specialist 4 | . . . . . . . . . . . . . . . . . . . . . 2 2 Hunter 8 | . . . . . . . . . . . 2 . . . . . . . . . . 6 Programmer 17 | . . . . . . . . . . . 2 . . . 1 2 . . 2 . . 10 Heavy 2 | . . . . . . . . . . . . . . . 1 . . . . . 1 . Assembled 1 | . . 1 . . . . . . . . . . . . . . . . . . . . Best Kill Streak 8 | 4 1 3 . 1 5 2 3 1 . 3 6 3 1 1 7 2 . . 8 . 6 5 Combat Bots Only 6 | . . 3 . . 4 1 3 1 . 3 6 2 . 1 4 2 . . 3 . 6 3 Max Kills in Single Turn 4 | 1 1 3 . 1 2 1 2 1 . 1 2 1 1 1 4 1 . . 1 . 3 3 Gunslinging . | . . . . . . . . . . . . . . . . . . . . . . . Exploded 3 | . . 2 . . 1 . 2 . . . 2 1 . . 3 . . . . . 3 2 Melee . | . . . . . . . . . . . . . . . . . . . . . . . Uniques/NPCs Destroyed . | . . . . . . . . . . . . . . . . . . . . . . . Combat | -11 -10 -10 -10 -9 -8 -7 -7 -7 -7 -6 -6 -6 -6 -6 -6 -5 -5 -5 -4 -3 -3 -2 -------- Run | Yrd Mat Min Exi Min Mat Fac Low Low Dat Pro Fac Ext Cet Arc Hub Fac Was Fac Fac Res DSF Res Hostile Shots Fired 1440 | . . 7 . . 23 33 1 18 . 14 169 214 24 2 44 7 . 12 210 . 55 607 Missed 498 | . . . . . 8 11 . 10 . 6 48 65 8 . 9 3 . 4 64 . 20 242 Hits 942 | . . 7 . . 15 22 1 8 . 8 121 149 16 2 35 4 . 8 146 . 35 365 Melee 2 | . . 1 . . . . . . . 1 . . . . . . . . . . . . Projectile 940 | . . 6 . . 15 22 1 8 . 7 121 149 16 2 35 4 . 8 146 . 35 365 AOE 8 | . . 3 . . . . . . . . . . . . . . . . 5 . . . Critical Strikes 51 | . . . . . 1 . . . . 1 2 2 3 . 2 . . . 9 . 4 27 Part Disruptions 2 | . . . . . . . . . . . . . . . . . . . . . . 2 Damage Taken 14519 | . 43 197 . . 181 127 13 45 . 131 1340 888 316 38 1104 70 . 90 2391 . 631 6914 Core 2559 | . . 27 . . 49 20 13 4 . 14 98 176 43 . 136 . . 24 368 . 128 1459 Absorbed by Shields 294 | . . . . . . . . . . . . 233 61 . . . . . . . . . Ignored by Resistances 4136 | . 13 55 . . 53 44 4 14 . 35 391 364 103 10 288 19 . 27 655 . 178 1883 Regen/Repaired (Parts) 35 | . . . . . . . . . . . 35 . . . . . . . . . . . Core Remaining (%) 84 | 100 . . . 89 91 . . . . 92 . . . . 46 . . 97 68 . 90 . Volleys Fired 314 | 5 2 2 . 1 13 8 2 7 . 7 71 49 7 5 14 4 . 1 36 . 4 76 Largest 3 | 2 2 2 . 2 2 2 2 2 . 2 2 2 2 2 2 3 . 1 3 . 3 3 Hottest 288 | 80 136 136 . 136 136 98 129 130 . 70 165 160 119 83 87 178 . 113 256 . 210 288 Shots Fired 638 | 10 4 4 . 2 26 16 4 12 . 14 140 90 10 7 26 10 . 1 94 . 11 157 Gun 102 | 10 . . . . . . . . . . 7 18 3 2 10 6 . . 46 . . . Cannon 487 | . 4 3 . 2 25 16 2 12 . 11 127 61 . 5 15 4 . 1 48 . . 151 Launcher 49 | . . 1 . . 1 . 2 . . 3 6 11 7 . 1 . . . . . 11 6 Special . | . . . . . . . . . . . . . . . . . . . . . . . Kinetic 232 | . . . . . . 7 . 5 . 4 56 34 . 7 25 6 . . 46 . . 42 Thermal 345 | 5 4 3 . 2 25 9 2 7 . 7 78 45 3 . . 4 . 1 48 . . 102 Explosive 49 | . . 1 . . 1 . 2 . . 3 6 11 7 . 1 . . . . . 11 6 Electromagnetic 12 | 5 . . . . . . . . . . . . . . . . . . . . . 7 Robot Hit Streak 28 | 4 8 10 . 11 28 8 . 11 . 24 21 25 13 14 14 19 . . 22 . 5 10 Robot Miss Streak 4 | 1 . . . . 1 1 . . . . 3 4 . 1 1 . . . 2 . 1 4 Penetration Max 1 | . . . . . . . . . . . 1 1 . . 1 . . . 1 . . . Secondary Targets . | . . . . . . . . . . . . . . . . . . . . . . . Shots Hit Robots 379 | 6 4 2 . 1 18 10 . 3 . 13 93 68 2 5 14 5 . . 54 . 8 73 Core Hits 242 | 4 . 4 . 1 12 4 4 1 . 7 51 35 15 2 16 2 . . 26 . 22 36 Critical Kills 9 | . . . . . . . . . . . 1 1 . 1 3 . . . 1 . . 2 Critical Parts Destroyed 8 | . . . . . . . . . . . 1 1 . 1 3 . . . 2 . . . Critical Strikes 29 | . . . . . . . . . . . 8 4 . 3 6 . . . 3 . . 5 Meltdown 3 | . . . . . . . . . . . 1 . . . . . . . . . . 2 Destroy 15 | . . . . . . . . . . . 1 2 . 3 6 . . . 3 . . . Blast 11 | . . . . . . . . . . . 6 2 . . . . . . . . . 3 Melee Attacks . | . . . . . . . . . . . . . . . . . . . . . . . Impact . | . . . . . . . . . . . . . . . . . . . . . . . Slashing . | . . . . . . . . . . . . . . . . . . . . . . . Piercing . | . . . . . . . . . . . . . . . . . . . . . . . Sneak Attacks . | . . . . . . . . . . . . . . . . . . . . . . . Combat Hostiles . | . . . . . . . . . . . . . . . . . . . . . . . Follow-up Attacks . | . . . . . . . . . . . . . . . . . . . . . . . Damage Inflicted 18886 | 79 83 139 . 20 574 271 222 134 . 664 3551 2161 563 87 1043 182 . . 1834 . 2791 4488 Guns 1747 | 79 . . . . . . . . . . 103 488 . 50 240 50 . . 737 . . . Cannons 10013 | . 83 41 . 20 395 271 . 134 . 301 2475 1477 . 37 152 132 . . 1097 . . 3398 Explosions 7126 | . . 98 . . 179 . 222 . . 363 973 196 563 . 651 . . . . . 2791 1090 Melee . | . . . . . . . . . . . . . . . . . . . . . . . Ramming . | . . . . . . . . . . . . . . . . . . . . . . . Kinetic 4289 | . . . . . . 136 . 26 . 114 962 883 . 87 392 50 . . 737 . . 902 Thermal 7277 | 10 83 41 . 20 395 135 . 108 . 187 1616 1082 . . . 132 . . 1097 . . 2371 Explosive 6680 | . . 98 . . 179 . 222 . . 363 973 196 563 . 205 . . . . . 2791 1090 Electromagnetic 640 | 69 . . . . . . . . . . . . . . 446 . . . . . . 125 Impact . | . . . . . . . . . . . . . . . . . . . . . . . Slashing . | . . . . . . . . . . . . . . . . . . . . . . . Piercing . | . . . . . . . . . . . . . . . . . . . . . . . Highest Corruption 25 | . . . . . . . . . . . 3 3 3 3 10 . . . . . . 25 Average Corruption 5 | . . . . . . . . . . . 1 3 3 3 3 . . . . . . 10 Corruption Purged . | . . . . . . . . . . . . . . . . . . . . . . . Corruption Blocked . | . . . . . . . . . . . . . . . . . . . . . . . Effects 94 | . . . . . . . . . . . 5 12 7 1 17 . . . . . . 52 Message Errors 17 | . . . . . . . . . . . . 2 3 . 2 . . . . . . 10 Matter Fused 22 | . . . . . . . . . . . 1 4 . . 7 . . . . . . 10 Heat Flow Errors 7 | . . . . . . . . . . . 1 . 2 1 . . . . . . . 3 Energy Discharges 7 | . . . . . . . . . . . 1 . 1 . 3 . . . . . . 2 Parts Rejected 3 | . . . . . . . . . . . . . . . . . . . . . . 3 Parts Fused 1 | . . . . . . . . . . . 1 . . . . . . . . . . . Data Loss (minor) 11 | . . . . . . . . . . . 1 1 . . 4 . . . . . . 5 Data Loss (major) 5 | . . . . . . . . . . . . 1 1 . . . . . . . . 3 Misfires 5 | . . . . . . . . . . . . 2 . . 1 . . . . . . 2 Alerts 3 | . . . . . . . . . . . . 1 . . . . . . . . . 2 Misdirections 8 | . . . . . . . . . . . . . . . . . . . . . . 8 Weapon Failures 5 | . . . . . . . . . . . . 1 . . . . . . . . . 4 Overload Shots 4 | . . . . . . . 2 2 . . . . . . . . . . . . . . Overflow Damage 607 | . 12 . . . . . 7 . . 3 45 67 . . 40 . . . 63 . 43 327 Projectiles 391 | . 12 . . . . . . . . . 45 67 . . . . . . 63 . . 204 Explosions 216 | . . . . . . . 7 . . 3 . . . . 40 . . . . . 43 123 Melee . | . . . . . . . . . . . . . . . . . . . . . . . Knockbacks 27 | . . . . . . . . . . 1 6 3 . . 3 . . . . . . 14 Impact . | . . . . . . . . . . . . . . . . . . . . . . . Kinetic 26 | . . . . . . . . . . 1 6 3 . . 3 . . . . . . 13 Secondary 1 | . . . . . . . . . . . . . . . . . . . . . . 1 Self-Inflicted Damage 300 | . . 49 . . . . . . . . . . . . 76 . . . . . . 175 Shots 5 | . . 2 . . . . . . . . . . . . 1 . . . . . . 2 Rammed . | . . . . . . . . . . . . . . . . . . . . . . . Targets Rammed . | . . . . . . . . . . . . . . . . . . . . . . . Kicked . | . . . . . . . . . . . . . . . . . . . . . . . Crushed . | . . . . . . . . . . . . . . . . . . . . . . . Highest Temperature 468 | 36 150 75 . 75 141 15 96 108 . 20 366 194 132 99 12 162 . 66 458 . 36 468 Average Temperature 113 | 15 78 36 . 42 42 8 51 60 . 10 115 41 70 59 6 66 . 44 182 . 22 126 Received Heat Transfer 2072 | . . . . . 135 48 . 18 . 63 588 369 18 . 18 9 . . 470 . 120 216 Effects 23 | . . . . . . . . . . . 2 . . . . . . . 15 . . 6 Shutdowns 8 | . . . . . . . . . . . . . . . . . . . 4 . . 4 Energy Bleed 2 | . . . . . . . . . . . . . . . . . . . 1 . . 1 Interference 10 | . . . . . . . . . . . 1 . . . . . . . 8 . . 1 Damage (minor) 3 | . . . . . . . . . . . 1 . . . . . . . 2 . . . Siege Activations . | . . . . . . . . . . . . . . . . . . . . . . . Martial Activations . | . . . . . . . . . . . . . . . . . . . . . . . Shielding Activations . | . . . . . . . . . . . . . . . . . . . . . . . Robots Disrupted . | . . . . . . . . . . . . . . . . . . . . . . . Combat Hostiles . | . . . . . . . . . . . . . . . . . . . . . . . Robots Corrupted . | . . . . . . . . . . . . . . . . . . . . . . . Combat Hostiles . | . . . . . . . . . . . . . . . . . . . . . . . Parts Fried 2 | 1 . . . . . . . . . . . 1 . . . . . . . . . . Impact Corruptions . | . . . . . . . . . . . . . . . . . . . . . . . Robots Melted 3 | . . . . . . . . . . . 1 . . . . . . . . . . 2 Combat Hostiles 3 | . . . . . . . . . . . 1 . . . . . . . . . . 2 Parts Melted 21 | . 1 1 . . 1 . . . . . 6 4 . . . . . . . . . 8 Heat Transferred 9032 | 25 148 74 . 37 629 185 . 100 . 259 2380 2161 . . . 111 . . 999 . . 1924 Parts Sabotaged . | . . . . . . . . . . . . . . . . . . . . . . . Parts Stolen . | . . . . . . . . . . . . . . . . . . . . . . . Parts Stripped . | . . . . . . . . . . . . . . . . . . . . . . . Power Chain Reactions 1 | . . . . . . . . . . . . . . . 1 . . . . . . . Alert | -11 -10 -10 -10 -9 -8 -7 -7 -7 -7 -6 -6 -6 -6 -6 -6 -5 -5 -5 -4 -3 -3 -2 ------- Run | Yrd Mat Min Exi Min Mat Fac Low Low Dat Pro Fac Ext Cet Arc Hub Fac Was Fac Fac Res DSF Res Maximum Alert Level 2 | . . . . . . . . . . . . 2 1 . 1 . . . 1 . 1 1 Low Security (%) 85 | 100 100 100 . 100 100 100 . . . . 100 71 92 100 36 100 100 100 48 100 65 94 Level 1 14 | . . . . . . . . . . . . 27 7 . 63 . . . 51 . 34 5 Level 2 . | . . . . . . . . . . . . . . . . . . . . . . . Level 3 . | . . . . . . . . . . . . . . . . . . . . . . . Level 4 . | . . . . . . . . . . . . . . . . . . . . . . . Level 5 . | . . . . . . . . . . . . . . . . . . . . . . . High Security . | . . . . . . . . . . . . . . . . . . . . . . . Max Security . | . . . . . . . . . . . . . . . . . . . . . . . Peak Influence 415 | 10 7 98 . 5 127 40 . . . . 118 415 216 157 345 126 . 2 395 114 322 342 Initial 152 | . 2 . . . . 40 . . . . 16 14 141 36 33 126 . . . 114 71 152 Average 84 | 1 2 74 . 1 37 7 . . . . 28 123 141 121 201 28 . . 170 110 148 83 Influence Increases 5900 | 20 11 98 . 5 196 79 70 20 . 70 644 993 288 141 981 56 . 2 678 4 271 1273 Destroy 0b10 Robot/C 2620 | . . 60 . . 100 20 60 20 . 60 420 600 160 80 320 40 . . 200 . 120 360 Destroy 0b10 Robot/NC 260 | 20 5 . . 5 20 10 . . . . 30 20 10 . 40 . . . 25 . 20 55 Destroy Leader 518 | . 2 10 . . 34 12 10 . . 10 96 64 . . 96 10 . . 52 . 20 102 Allied During Kill 426 | . . . . . . . . . . . . 189 63 40 134 . . . . . . . Successful Hack 71 | . 4 . . . . 16 . . . . 15 . . . 7 4 . . 3 4 . 18 Disable Machine 234 | . . 9 . . 27 9 . . . . 18 18 . 18 108 . . . 9 . . 18 Anti-Garrison Action 200 | . . . . . . . . . . . . . . . . . . . 200 . . . Destroy Structure 941 | . . 19 . . 15 12 . . . . 50 87 55 3 126 2 . 2 54 . 96 420 Lose Combat Pursuer 630 | . . . . . . . . . . . 15 15 . . 150 . . . 135 . 15 300 Influence Decreases 5603 | 15 16 50 48 5 92 183 70 20 . 40 640 735 471 133 798 356 . . 428 148 67 1288 Entered New Map 968 | . 3 . 48 . . 64 . . . . 14 20 151 73 84 174 . . 2 138 37 160 Time Decay 3152 | 15 13 30 . 5 82 119 70 20 . 40 531 385 250 60 290 172 . . 286 10 . 774 Lost Part 818 | . . 20 . . 10 . . . . . 90 91 30 . 90 10 . . 140 . 30 307 Lost Ally 406 | . . . . . . . . . . . . 239 40 . 80 . . . . . . 47 Purge Threat 259 | . . . . . . . . . . . 5 . . . 254 . . . . . . . Squads Dispatched 37 | . . . . . 1 1 . . . . 6 . . . 5 3 . 1 4 . 2 14 Investigation 8 | . . . . . 1 . . . . . 2 . . . . . . . 2 . . 3 Extermination 14 | . . . . . . . . . . . 2 . . . 2 2 . . 2 . . 6 Reinforcement 14 | . . . . . . 1 . . . . 2 . . . 2 1 . 1 . . 2 5 Assault . | . . . . . . . . . . . . . . . . . . . . . . . Garrison 1 | . . . . . . . . . . . . . . . 1 . . . . . . . Intercept . | . . . . . . . . . . . . . . . . . . . . . . . Searches Triggered . | . . . . . . . . . . . . . . . . . . . . . . . Data Miner Redirects 4 | . . . . . . . . . . . 1 . . . . . . . 2 . . 1 Construction Impeded 4 | . . . . . . . . . . . 2 . . . . . . . . . . 2 Haulers Reinforced . | . . . . . . . . . . . . . . . . . . . . . . . Active Scanning Responses . | . . . . . . . . . . . . . . . . . . . . . . . Cargo Convoy Interrupts . | . . . . . . . . . . . . . . . . . . . . . . . Stealth | -11 -10 -10 -10 -9 -8 -7 -7 -7 -7 -6 -6 -6 -6 -6 -6 -5 -5 -5 -4 -3 -3 -2 --------- Run | Yrd Mat Min Exi Min Mat Fac Low Low Dat Pro Fac Ext Cet Arc Hub Fac Was Fac Fac Res DSF Res Distress Signals 7 | . . . . . 1 . . . . . . 2 1 . 1 . . . . . . 2 Communications Jammed . | . . . . . . . . . . . . . . . . . . . . . . . Distress Signals . | . . . . . . . . . . . . . . . . . . . . . . . Times Spotted 215 | . 2 8 . . 9 2 2 1 . 3 25 26 9 2 29 4 . 5 25 . 11 52 Peak Tracking Total 12 | . 2 5 . . 5 1 1 1 . 3 4 6 5 1 9 2 . 4 6 . 5 12 Tactical Retreats 28 | . . 1 . . . . . . . . 1 1 . . 5 . . . 6 . 1 13 Traps | -11 -10 -10 -10 -9 -8 -7 -7 -7 -7 -6 -6 -6 -6 -6 -6 -5 -5 -5 -4 -3 -3 -2 ------- Run | Yrd Mat Min Exi Min Mat Fac Low Low Dat Pro Fac Ext Cet Arc Hub Fac Was Fac Fac Res DSF Res Traps Triggered 13 | . 2 . . . . . . . . . 1 3 . . 2 1 . . 1 . . 3 Indirectly 2 | . . . . . . . . . . . . . . . 2 . . . . . . . Trap Hack Attempts . | . . . . . . . . . . . . . . . . . . . . . . . Triggered . | . . . . . . . . . . . . . . . . . . . . . . . Disarmed . | . . . . . . . . . . . . . . . . . . . . . . . Reprogrammed . | . . . . . . . . . . . . . . . . . . . . . . . Reused . | . . . . . . . . . . . . . . . . . . . . . . . Traps Extracted . | . . . . . . . . . . . . . . . . . . . . . . . Installed 1 | . . . . . . . . 1 . . . . . . . . . . . . . . Triggered . | . . . . . . . . . . . . . . . . . . . . . . . Machines | -11 -10 -10 -10 -9 -8 -7 -7 -7 -7 -6 -6 -6 -6 -6 -6 -5 -5 -5 -4 -3 -3 -2 ---------- Run | Yrd Mat Min Exi Min Mat Fac Low Low Dat Pro Fac Ext Cet Arc Hub Fac Was Fac Fac Res DSF Res Machines Disabled 28 | . . 1 . . 3 1 . 1 . . 2 3 . 2 12 . . . 1 . . 2 Max in Single Turn 9 | . . 1 . . 2 1 . 1 . . 1 1 . 1 9 . . . 1 . . 1 Garrison Access 1 | . . . . . . . . . . . . . . . . . . . 1 . . . Network Hub 1 | . . . . . . . . . . . . . . . 1 . . . . . . . Machines Repaired . | . . . . . . . . . . . . . . . . . . . . . . . Machines Dismantled . | . . . . . . . . . . . . . . . . . . . . . . . Machines Sabotaged . | . . . . . . . . . . . . . . . . . . . . . . . Overloaded Fab Kills . | . . . . . . . . . . . . . . . . . . . . . . . Hacking | -11 -10 -10 -10 -9 -8 -7 -7 -7 -7 -6 -6 -6 -6 -6 -6 -5 -5 -5 -4 -3 -3 -2 --------- Run | Yrd Mat Min Exi Min Mat Fac Low Low Dat Pro Fac Ext Cet Arc Hub Fac Was Fac Fac Res DSF Res Machines Accessed 37 | . 2 . . . 1 2 1 . 4 . 4 3 1 . 4 6 . . 3 2 . 4 Terminals 20 | . 2 . . . . 1 1 . . . 2 2 1 . 3 2 . . 2 1 . 3 Fabricators 4 | . . . . . . 1 . . . . . . . . . 2 . . . . . 1 Repair Stations 2 | . . . . . . . . . . . 2 . . . . . . . . . . . Recycling Units 2 | . . . . . . . . . . . . 1 . . . 1 . . . . . . Scanalyzers 1 | . . . . . . . . . . . . . . . . . . . . 1 . . Garrison Access 4 | . . . . . 1 . . . . . . . . . 1 1 . . 1 . . . Total Hacks 104 | . 3 . . . 3 4 1 . 31 . 11 3 1 . 12 15 . . 7 4 . 9 Successful 62 | . 2 . . . . 2 1 . 31 . 7 2 . . 5 3 . . 3 3 . 3 Failed 42 | . 1 . . . 3 2 . . . . 4 1 1 . 7 12 . . 4 1 . 6 Catastrophic 10 | . . . . . 1 . . . . . . 1 1 . 2 3 . . 2 . . . Database Lockouts . | . . . . . . . . . . . . . . . . . . . . . . . Manual 28 | . 1 . . . . . . . . . 3 2 1 . 8 5 . . 5 . . 3 Terminals 44 | . 3 . . . . 3 1 . . . 4 2 1 . 10 5 . . 6 2 . 7 Fabricators 7 | . . . . . . 1 . . . . . . . . . 4 . . . . . 2 Repair Stations 7 | . . . . . . . . . . . 7 . . . . . . . . . . . Recycling Units 5 | . . . . . . . . . . . . 1 . . . 4 . . . . . . Scanalyzers 2 | . . . . . . . . . . . . . . . . . . . . 2 . . Garrison Access 8 | . . . . . 3 . . . . . . . . . 2 2 . . 1 . . . Terminal Hacks 49 | . 2 . . . . 1 1 . 31 . 4 1 . . 4 1 . . 2 1 . 1 Record 12 | . . . . . . . 1 . 11 . . . . . . . . . . . . . Part Schematic 13 | . . . . . . . . . 13 . . . . . . . . . . . . . Robot Schematic 4 | . . . . . . . . . 4 . . . . . . . . . . . . . Prototype ID Bank 3 | . . . . . . . . . 3 . . . . . . . . . . . . . Open DSF 2 | . . . . . . . . . . . . . . . . . . . . 1 . 1 Branch Access Points 1 | . 1 . . . . . . . . . . . . . . . . . . . . . Alert Level 5 | . . . . . . . . . . . 1 . . . 2 1 . . 1 . . . Unreport Threat 3 | . . . . . . . . . . . 1 . . . 2 . . . . . . . Locate Traps 2 | . . . . . . 1 . . . . . . . . . . . . 1 . . . Transport Status 1 | . 1 . . . . . . . . . . . . . . . . . . . . . Zone Layout 3 | . . . . . . . . . . . 2 1 . . . . . . . . . . Fabricator Hacks 4 | . . . . . . 1 . . . . . . . . . 1 . . . . . 2 Load Schematic 1 | . . . . . . . . . . . . . . . . . . . . . . 1 Build 3 | . . . . . . 1 . . . . . . . . . 1 . . . . . 1 Repair Station Hacks 3 | . . . . . . . . . . . 3 . . . . . . . . . . . Scan Component 2 | . . . . . . . . . . . 2 . . . . . . . . . . . Repair 1 | . . . . . . . . . . . 1 . . . . . . . . . . . Recycling Unit Hacks 1 | . . . . . . . . . . . . . . . . 1 . . . . . . Report Inventory 1 | . . . . . . . . . . . . . . . . 1 . . . . . . Scanalyzer 2 | . . . . . . . . . . . . . . . . . . . . 2 . . Insert Component 1 | . . . . . . . . . . . . . . . . . . . . 1 . . Analyze 1 | . . . . . . . . . . . . . . . . . . . . 1 . . Garrison Access Hacks . | . . . . . . . . . . . . . . . . . . . . . . . Unauthorized Hacks 3 | . . . . . . . . . . . . 1 . . 1 . . . 1 . . . Terminals . | . . . . . . . . . . . . . . . . . . . . . . . Fabricators . | . . . . . . . . . . . . . . . . . . . . . . . Repair Stations . | . . . . . . . . . . . . . . . . . . . . . . . Recycling Units 1 | . . . . . . . . . . . . 1 . . . . . . . . . . Reject 1 | . . . . . . . . . . . . 1 . . . . . . . . . . Scanalyzers . | . . . . . . . . . . . . . . . . . . . . . . . Garrison Access 2 | . . . . . . . . . . . . . . . 1 . . . 1 . . . Reprogram 1 | . . . . . . . . . . . . . . . 1 . . . . . . . Jam 1 | . . . . . . . . . . . . . . . . . . . 1 . . . Data Cores Recovered . | . . . . . . . . . . . . . . . . . . . . . . . Used . | . . . . . . . . . . . . . . . . . . . . . . . Hacking Detections 25 | . 2 . . . 1 2 1 . . . 3 1 1 . 4 5 . . 1 . . 4 Full Trace Events 6 | . . . . . 1 . . . . . 2 . . . . . . . 1 . . 2 Feedback Events 1 | . . . . . . . . . . . . . . . . . . . . . . 1 Corruption 1 | . . . . . . . . . . . . . . . . . . . . . . 1 Feedback Blocked . | . . . . . . . . . . . . . . . . . . . . . . . Robot Schematics Acquired 4 | . . . . . . . . . 4 . . . . . . . . . . . . . Robots Built 5 | . . . . . . 2 . . . . . . . . . . . . . . . 3 Authchips . | . . . . . . . . . . . . . . . . . . . . . . . Time 139 | . . . . . . 81 . . . . . . . . . . . . . . . 58 Total Robot Build Rating 11 | . . . . . . 2 . . . . . . . . . . . . . . . 9 Part Schematics Acquired 13 | . . . . . . . . . 13 . . . . . . . . . . . . . Parts Built 2 | . . . . . . . . . . . . . . . . 2 . . . . . . Authchips . | . . . . . . . . . . . . . . . . . . . . . . . Time 128 | . . . . . . . . . . . . . . . . 128 . . . . . . Total Part Build Rating 16 | . . . . . . . . . . . . . . . . 16 . . . . . . Parts Repaired 1 | . . . . . . . . . . . 1 . . . . . . . . . . . Time 26 | . . . . . . . . . . . 26 . . . . . . . . . . . Parts Recycled . | . . . . . . . . . . . . . . . . . . . . . . . Recycled Matter . | . . . . . . . . . . . . . . . . . . . . . . . Retrieved Matter . | . . . . . . . . . . . . . . . . . . . . . . . Retrieved Components . | . . . . . . . . . . . . . . . . . . . . . . . Parts Scanalyzed 1 | . . . . . . . . . . . . . . . . . . . . 1 . . Part Schematics Acquired . | . . . . . . . . . . . . . . . . . . . . . . . Parts Damaged . | . . . . . . . . . . . . . . . . . . . . . . . Bothacking | -11 -10 -10 -10 -9 -8 -7 -7 -7 -7 -6 -6 -6 -6 -6 -6 -5 -5 -5 -4 -3 -3 -2 ------------ Run | Yrd Mat Min Exi Min Mat Fac Low Low Dat Pro Fac Ext Cet Arc Hub Fac Was Fac Fac Res DSF Res Used RIF Installer . | . . . . . . . . . . . . . . . . . . . . . . . Robots Hacked . | . . . . . . . . . . . . . . . . . . . . . . . Non-combat . | . . . . . . . . . . . . . . . . . . . . . . . Combat . | . . . . . . . . . . . . . . . . . . . . . . . Robot Hacks Applied . | . . . . . . . . . . . . . . . . . . . . . . . Relay Couplers Released . | . . . . . . . . . . . . . . . . . . . . . . . Fabnet Peak Effective % . | . . . . . . . . . . . . . . . . . . . . . . . Robots Rewired 14 | . . . . . . . . . . . . 14 . . . . . . . . . . Allies Hacked . | . . . . . . . . . . . . . . . . . . . . . . . Hacks Repelled . | . . . . . . . . . . . . . . . . . . . . . . . Allies | -11 -10 -10 -10 -9 -8 -7 -7 -7 -7 -6 -6 -6 -6 -6 -6 -5 -5 -5 -4 -3 -3 -2 -------- Run | Yrd Mat Min Exi Min Mat Fac Low Low Dat Pro Fac Ext Cet Arc Hub Fac Was Fac Fac Res DSF Res Total Allies 30 | . . . . . . 2 . . . . . 20 5 . . . . . . . . 3 Largest Group 11 | . . . . . . 2 1 1 . . . 11 10 8 7 . . . . . . 3 Highest-Rated Group 763 | . . . . . . 20 10 10 . . . 456 763 577 488 . . . . . . 75 Highest-Rated Ally 159 | . . . . . . 10 10 10 . . . 159 159 96 96 . . . . . . 25 Total Orders 6 | . . . . . . 2 4 . . . . . . . . . . . . . . . FOLLOW 2 | . . . . . . 1 1 . . . . . . . . . . . . . . . TUNNEL 4 | . . . . . . 1 3 . . . . . . . . . . . . . . . Ally Attacks 279 | . . . . . . . . . . . . 135 50 15 75 . . . . . . 4 Total Damage 6767 | . . . . . . . . . . . . 2610 1301 466 2213 . . . . . . 177 Kills 50 | . . . . . . . . . . . . 24 9 3 14 . . . . . . . Allies Corrupted . | . . . . . . . . . . . . . . . . . . . . . . . Allies Melted 1 | . . . . . . . . . . . . . . . 1 . . . . . . . Intel | -11 -10 -10 -10 -9 -8 -7 -7 -7 -7 -6 -6 -6 -6 -6 -6 -5 -5 -5 -4 -3 -3 -2 ------- Run | Yrd Mat Min Exi Min Mat Fac Low Low Dat Pro Fac Ext Cet Arc Hub Fac Was Fac Fac Res DSF Res Active Infowar (turns) 9165 | 37 93 70 76 . . 509 298 470 118 334 1514 889 501 134 617 643 201 70 789 31 174 1597 Optics 7154 | . . . . . . . . . . . 1508 889 501 134 617 643 201 70 789 31 174 1597 Sensors 4484 | . . . . . . 509 298 470 118 334 1514 702 . . 539 . . . . . . . Structural 5166 | . . . . . . . . . . . 1509 889 501 134 617 643 201 70 458 31 113 . Seismic 2441 | 37 93 70 76 . . . . . . . . 124 501 134 24 489 . . . . . 893 Robot Analysis Total . | . . . . . . . . . . . . . . . . . . . . . . . Derelict Logs Recovered 3 | . . . . 1 . . . 2 . . . . . . . . . . . . . . Drone Launches . | . . . . . . . . . . . . . . . . . . . . . . . Drone Recoveries . | . . . . . . . . . . . . . . . . . . . . . . . Exploration | -11 -10 -10 -10 -9 -8 -7 -7 -7 -7 -6 -6 -6 -6 -6 -6 -5 -5 -5 -4 -3 -3 -2 ------------- Run | Yrd Mat Min Exi Min Mat Fac Low Low Dat Pro Fac Ext Cet Arc Hub Fac Was Fac Fac Res DSF Res Turns Passed 9798 | 99 93 77 288 41 298 509 298 470 118 334 1514 889 501 134 617 643 201 70 802 31 174 1597 Spaces Moved 5946 | 57 89 61 184 18 184 297 203 345 95 238 909 511 215 62 334 296 122 43 456 54 119 1054 Core 363 | 4 . . . . . . . . . . . 2 . . . . . . 112 54 62 129 Treads 1508 | . . . . . . . . . . . . 92 215 62 334 296 122 43 344 . . . Legs 982 | . . . . . . . . . . . . . . . . . . . . . 57 925 Wheels 3093 | 53 89 61 184 18 184 297 203 345 95 238 909 417 . . . . . . . . . . Hover . | . . . . . . . . . . . . . . . . . . . . . . . Flight . | . . . . . . . . . . . . . . . . . . . . . . . Fastest Speed 50 | 50 90 90 90 210 125 125 125 125 125 125 90 90 160 160 160 160 160 160 50 50 50 50 Average Speed 128 | 89 90 91 155 210 127 125 125 125 125 129 133 113 160 160 160 160 160 160 134 50 85 112 Slowest Speed 600 | 100 90 115 210 210 140 125 125 125 125 155 165 600 160 160 160 160 160 160 480 50 250 190 Overloaded Moves . | . . . . . . . . . . . . . . . . . . . . . . . Propulsion Burnouts . | . . . . . . . . . . . . . . . . . . . . . . . Robots Hopped . | . . . . . . . . . . . . . . . . . . . . . . . Potential Cave-ins 15 | . . . . . . . . . . . . 10 . . . . . . . . . 5 Cave-ins Triggered . | . . . . . . . . . . . . . . . . . . . . . . . Exploration Rate (%) 38 | 5 23 27 54 9 24 9 36 59 70 48 27 65 67 85 41 11 82 2 18 2 95 34 Regions Visited 22 Branch Regions 11 Pre-discovered Areas 1 | . . . . . . . . . 1 . . . . . . . . . . . . . Known Exits Taken 14 | . 1 . . . . 1 1 1 1 1 1 1 1 1 1 . . 1 1 1 . . Unknown Exits Taken 5 | 1 . 1 1 1 1 . . . . . . . . . . . . . . . . . Scrap Searched 3 | . . . . . . . 1 2 . . . . . . . . . . . . . . Spaces Dug 100 | . . . . . . . . 3 . . 3 66 . . . 1 . . 8 . . 19 Terrain Destroyed 872 | . . 19 . . 18 1 34 4 . 27 57 189 95 2 178 1 . 1 27 . 58 161 Melee . | . . . . . . . . . . . . . . . . . . . . . . . Projectile 134 | . . . . . 4 1 2 4 . . 16 5 . 2 8 1 . 1 27 . . 63 AOE 738 | . . 19 . . 14 . 32 . . 27 41 184 95 . 170 . . . . . 58 98 Terrain Rammed . | . . . . . . . . . . . . . . . . . . . . . . . Walls Destroyed . | . . . . . . . . . . . . . . . . . . . . . . . Machines Disabled . | . . . . . . . . . . . . . . . . . . . . . . . Actions | -11 -10 -10 -10 -9 -8 -7 -7 -7 -7 -6 -6 -6 -6 -6 -6 -5 -5 -5 -4 -3 -3 -2 --------- Run | Yrd Mat Min Exi Min Mat Fac Low Low Dat Pro Fac Ext Cet Arc Hub Fac Was Fac Fac Res DSF Res Total 7440 | 91 97 77 188 20 219 420 242 371 94 247 1065 719 359 89 392 459 127 43 570 57 177 1317 Wait 806 | 16 . 10 . . . 102 37 17 . . 40 26 131 19 37 144 . . 59 2 38 128 Move 5926 | 56 88 60 183 17 183 296 202 344 94 237 908 510 214 61 333 296 121 42 455 54 118 1054 Hop . | . . . . . . . . . . . . . . . . . . . . . . . Pick Up 73 | 7 1 . 2 2 12 6 . 1 . . 8 5 2 2 2 4 3 . 3 1 3 9 Fast Attach 83 | 7 3 . 1 . 3 1 . . . 1 11 9 3 1 1 2 2 . 5 . 8 25 Attach 49 | . . 3 . . 4 2 . . . . 8 3 2 . 1 5 . . 5 . 4 12 Detach 12 | . . . 1 . . 1 . . . . 3 . . . 1 . . . . . 1 5 Swap 28 | . . 2 . . 2 1 1 1 . 2 6 5 . 1 1 1 . . 3 . . 2 Drop 39 | . 3 . 1 . 2 3 . . . . 10 3 . . 2 3 1 . 4 . 1 6 Fire 314 | 5 2 2 . 1 13 8 2 7 . 7 71 49 7 5 14 4 . 1 36 . 4 76 Melee . | . . . . . . . . . . . . . . . . . . . . . . . Ram . | . . . . . . . . . . . . . . . . . . . . . . . Kick . | . . . . . . . . . . . . . . . . . . . . . . . Crush . | . . . . . . . . . . . . . . . . . . . . . . . Escape Stasis 16 | . . . . . . . . . . . . 16 . . . . . . . . . . Rewire 93 | . . . . . . . . . . . . 93 . . . . . . . . . . Trap 1 | . . . . . . . . 1 . . . . . . . . . . . . . . Miscellaneous . | . . . . . . . . . . . . . . . . . . . . . . . Route ------- -11/Scrapyard -10/Materials -10/Mines -10/Exiles -9/Mines -8/Materials -7/Factory (discovered 2 exits: *Fac / *Low) -7/Lower Caves -7/Lower Caves (discovered 2 exits: *Fac / *Dat) -7/Data Miner -6/Proximity Caves -6/Factory (discovered 2 exits: *Fac / *Ext) -6/Extension (discovered 2 exits: *Fac / *Cet) -6/Cetus (discovered 2 exits: *Fac / *Arc) -6/Archives (discovered 2 exits: *Fac / *Hub) -6/Hub_04(d) (discovered 2 exits: *Fac x2) -5/Factory -5/Waste -5/Factory -4/Factory -3/Research -3/DSF -2/Research History --------- Turn | Location | Event 38 | -11/Scrapyard | Discovered new exit (range 16) 100 | -11/Scrapyard | Entered Materials 156 | -10/Materials | Identified exit to Mines 193 | -10/Materials | Entered Mines 194 | -10/Mines | Assembled infested the area 266 | -10/Mines | Deemed a non-threat by the Exiles lab entrance 267 | -10/Mines | Discovered new exit (range 5) 270 | -10/Mines | Entered Exiles 292 | -10/Exiles | Met 8R-AWN 307 | -10/Exiles | Met EX-HEX 311 | -10/Exiles | Build established: Mutant 382 | -10/Exiles | Met EX-DEC 527 | -10/Exiles | Discovered new exit (range 14) 558 | -10/Exiles | Entered Mines 569 | -9/Mines | Learned Materials trap positions 575 | -9/Mines | Discovered new exit (range 8) 599 | -9/Mines | Entered Materials 599 | -8/Materials | Evolved 4 slots: Propulsion x4 600 | -8/Materials | Loaded intel: 8 trap records 641 | -8/Materials | Build established: Hauler-Mutant 891 | -8/Materials | Discovered new exit (range 7) 897 | -8/Materials | Entered Factory 897 | -7/Factory | Evolved 2 slots: Utility x2 968 | -7/Factory | Discovered new exit (range 11) 981 | -7/Factory | Identified exit to Factory 1162 | -7/Factory | Fabricated T-07 Excavator? 1303 | -7/Factory | Discovered new exit (range 6) 1404 | -7/Factory | Identified exit to Lower Caves 1406 | -7/Factory | Entered Lower Caves 1406 | -7/Lower Caves | Accompanied by 1 ally 1407 | -7/Lower Caves | Encountered a Warlord checkpoint 1675 | -7/Lower Caves | Discovered new exit (range 15) 1692 | -7/Lower Caves | Identified exit to Lower Caves 1704 | -7/Lower Caves | Entered another Lower Caves area 1704 | -7/Lower Caves | Accompanied by 1 ally 1706 | -7/Lower Caves | Attracted the attention of an 0b10 checkpoint 1750 | -7/Lower Caves | Discovered exit to Factory (range 10) 2076 | -7/Lower Caves | Learned Factory emergency access door positions 2161 | -7/Lower Caves | Discovered new exit (range 9) 2171 | -7/Lower Caves | Identified exit to Data Miner 2174 | -7/Lower Caves | Entered Data Miner 2174 | -7/Data Miner | Discovered new exit (range 6) 2198 | -7/Data Miner | Met Data Miner 2223 | -7/Data Miner | Learned location of Section 7 (-2) 2223 | -7/Data Miner | Acquired the access code to Warlord's prototype stash 2253 | -7/Data Miner | Received God Mode back door access code from Data Miner 2289 | -7/Data Miner | Identified exit to Proximity Caves 2292 | -7/Data Miner | Entered Proximity Caves 2611 | -6/Proximity Caves | Discovered exit to Factory (range 13) 2626 | -6/Proximity Caves | Entered Factory 2626 | -6/Factory | Evolved 2 slots: Utility x2 2627 | -6/Factory | Identified exit to Extension 2798 | -6/Factory | Lost 3 parts (3n) 2931 | -6/Factory | Build established: Hauler-Skirmisher 3604 | -6/Factory | Repaired Wheel 3605 | -6/Factory | Incoming investigation squad redirected 3881 | -6/Factory | Spotted B-75 Beast 3893 | -6/Factory | Discovered new exit (range 21) 3925 | -6/Factory | Identified exit to Factory 4083 | -6/Factory | Lost 4 parts (1p1n1u1w) 4140 | -6/Factory | Entered Extension 4383 | -6/Extension | Rescued A7 4515 | -6/Extension | Disrupted transfer network 4576 | -6/Extension | Rescued a captive Derelict 4585 | -6/Extension | Rescued a captive Derelict 4587 | -6/Extension | Rescued a captive Derelict 4645 | -6/Extension | Lost 5 allies 4852 | -6/Extension | Lost 9 allies 4873 | -6/Extension | Lost 4 parts (2n1u1w) 4945 | -6/Extension | Rescued a captive Derelict 4945 | -6/Extension | Rescued a captive Derelict 4993 | -6/Extension | Discovered exit to Factory (range 10) 4994 | -6/Extension | Discovered new exit (range 6) 5002 | -6/Extension | Identified exit to Cetus 5029 | -6/Extension | Entered Cetus 5029 | -6/Cetus | Accompanied by 6 allies (A7) 5034 | -6/Cetus | Acquired a Cetus Manufacturing Module code from A7 5045 | -6/Cetus | Spotted Cetus Guard 5046 | -6/Cetus | Spotted Cetus Guard 5051 | -6/Cetus | Spotted Cetus Guard 5051 | -6/Cetus | Spotted Cetus Guard 5053 | -6/Cetus | Allies destroyed Cetus Guard 5064 | -6/Cetus | Allies destroyed Cetus Guard 5068 | -6/Cetus | Allies destroyed Cetus Guard 5074 | -6/Cetus | Allies destroyed Cetus Guard 5150 | -6/Cetus | Build established: Scavenger-Mutant 5212 | -6/Cetus | Started Cetus Manufacturing Module 5237 | -6/Cetus | Manufactured an Enhanced Grunt 5262 | -6/Cetus | Manufactured an Enhanced Grunt 5263 | -6/Cetus | Discovered new exit (range 21) 5287 | -6/Cetus | Manufactured an Enhanced Grunt 5312 | -6/Cetus | Manufactured an Enhanced Grunt 5337 | -6/Cetus | Manufactured an Enhanced Grunt 5379 | -6/Cetus | Spotted Cetus Guard 5380 | -6/Cetus | Spotted Cetus Guard 5385 | -6/Cetus | Discovered exit to Factory (range 22) 5388 | -6/Cetus | Spotted Cetus Guard 5388 | -6/Cetus | Spotted Cetus Guard 5396 | -6/Cetus | Allies destroyed Cetus Guard 5397 | -6/Cetus | Allies destroyed Cetus Guard 5398 | -6/Cetus | Allies destroyed Cetus Guard 5401 | -6/Cetus | Allies destroyed Cetus Guard 5414 | -6/Cetus | Met Revision 17 5504 | -6/Cetus | Identified exit to Archives 5530 | -6/Cetus | Entered Archives 5530 | -6/Archives | Accompanied by 9 allies (A7) 5576 | -6/Archives | Unable to access archive contents 5587 | -6/Archives | Discovered exit to Factory (range 18) 5616 | -6/Archives | Discovered new exit (range 18) 5648 | -6/Archives | Identified exit to Hub_04(d) 5664 | -6/Archives | Entered Hub_04(d) 5664 | -6/Hub_04(d) | Accompanied by 7 allies 5697 | -6/Hub_04(d) | Garrison activated, responded to threat 5716 | -6/Hub_04(d) | Discovered exit to Factory (range 8) 5752 | -6/Hub_04(d) | Lost 4 allies 5784 | -6/Hub_04(d) | Discovered exit to Factory (range 21) 5975 | -6/Hub_04(d) | Build established: Scavenger-Skirmisher 6191 | -6/Hub_04(d) | Network Hub disabled 6209 | -6/Hub_04(d) | Spotted Lightning 6210 | -6/Hub_04(d) | Spotted Lightning 6224 | -6/Hub_04(d) | Spotted Lightning 6225 | -6/Hub_04(d) | Spotted Lightning 6225 | -6/Hub_04(d) | Spotted Lightning 6243 | -6/Hub_04(d) | System corruption reached 10% 6255 | -6/Hub_04(d) | Spotted Lightning 6273 | -6/Hub_04(d) | Lost 9 parts (2p4n1u2w) 6278 | -6/Hub_04(d) | Core integrity fell below 50% 6281 | -6/Hub_04(d) | Entered Factory 6281 | -5/Factory | Evolved 2 slots: Power x1, Weapon x1 6583 | -5/Factory | Build established: Scavenger-Tank 6751 | -5/Factory | Fabricated Nova Cannon (x2) 6924 | -5/Factory | Sucked down chute 6924 | -5/Factory | Entered Waste 6924 | -5/Waste | The area was eerily silent 7047 | -5/Waste | Discovered new exit (range 10) 7087 | -5/Waste | Build established: Scavenger-Gunner 7123 | -5/Waste | Identified exit to Factory 7125 | -5/Waste | Entered Factory 7125 | -5/Factory | Discovered new exit (range 13) 7169 | -5/Factory | Identified exit to Factory 7195 | -5/Factory | Entered another Factory area 7195 | -4/Factory | Evolved 2 slots: Utility x2 7492 | -4/Factory | Build established: Scavenger-Tank 7601 | -4/Factory | Incoming investigation squad redirected 7874 | -4/Factory | Lost 3 parts (1p1u1w) 7904 | -4/Factory | Spotted B-86 Titan 7942 | -4/Factory | Lost 8 parts (1p2n2u3w) 7947 | -4/Factory | Incoming investigation squad redirected 7980 | -4/Factory | Discovered new exit (range 22) 7993 | -4/Factory | Identified exit to Research 7997 | -4/Factory | Entered Research 7997 | -3/Research | Evolved 2 slots: Utility x2 8028 | -3/Research | Identified exit to DSF 8028 | -3/Research | Entered DSF 8056 | -3/DSF | Found Prototype Launcher 8056 | -3/DSF | Identified Ragnarok Missile Launcher 8060 | -3/DSF | Found Ragnarok Missile Launcher 8068 | -3/DSF | Additional patrols routed to DSF 8129 | -3/DSF | Found Ragnarok Missile Launcher 8184 | -3/DSF | Discovered new exit (range 15) 8202 | -3/DSF | Entered Research 8202 | -2/Research | Evolved 2 slots: Propulsion x1, Utility x1 8509 | -2/Research | Incoming investigation squad redirected 8552 | -2/Research | Fabricated C-17 Slicer? 8645 | -2/Research | Lost 3 allies 8973 | -2/Research | Build established: Scavenger-Gunner 9100 | -2/Research | System corruption reached 10% 9169 | -2/Research | Lost 4 parts (1p2u1w) 9280 | -2/Research | Spotted B-90 Cyclops 9297 | -2/Research | Lost 3 parts (1n1u1w) 9319 | -2/Research | Spotted B-90 Cyclops 9476 | -2/Research | Lost 9 parts (2p6n1u) 9486 | -2/Research | Build established: Scavenger-Mutant 9735 | -2/Research | Core integrity fell below 50% 9750 | -2/Research | Core integrity fell below 20% 9787 | -2/Research | Lost 9 parts (1p3n2u3w) 9799 | -2/Research | Destroyed by P-80 Master with Gamma Rifle Last Messages --------------- P-80 Master resets P-80 Master, system corruption cleaned. Dropped Med. Storage Unit. The unstable cave ceiling collapses. Dropped Myomer Leg. The unstable cave ceiling collapses. Door malfunctions. Penetrated by Slug. System corrupted: Substantial component data lost. Adv. Target Analyzer destroyed. ALERT: Potential suspicious activity detected, Programmers report to Research Zone 4F. Connecting with DSF Access... B8NG0F8JRXZJPY/BUEWREKBMUUIW063QA Triggered Alarm Trap. An alarm sounds. ALERT: Alarm triggered, dispatching investigation squad. Slug penetrates Wall. Map ----- +----------------------------------------------------+ | ?????????????????????????????????????????????????? | | ?????????????????????????????????????????????????? | | ?????????????????????????????????????????????????? | | ?????????????????????????????????????????????????? | | ?????????????????????????????????????????????????? | | ?????????????????????????????????????????????###?? | | ????????????????????????????????????????????? ?? | | ????????????????????????????????????????????? ?? | | ????????????????????????#+#+##??????????????? ?? | | ????????????????????????# ??????????????? ?? | | ????????????????????????# #???????????????# #?? | | ????????????????????????# #???????????????# #?? | | ????????????????????????+ #????##########?# #?? | | ????????????????????????# #????# #?# #?? | | ????????????????????????# #????? #?# #?? | | ????????????????????????# #????? """ #?# ### | | ????????????????????????# #?????? """ ??# | | ????????????????????????# R ##?????[ """ ?## | | ????????????????????????# ??????? """ ??# | | ????????????????????????+ #??????? """ ??#T | | ????????????????????????#h #???????? ??## | | ????????????????????????# #???????? ???# | | ????????????????????????# ##########/###### | | ????????????????????????# | | ????????????????????????# | | ????????????????????????#@ p | | ##??????????????????????# "" p | | #??????????????????????# "" p ###+########## | | #?????????????#######??# "Y #????????????? | | #?????????????# ?# p"" p #????????????? | | #?????????????# ?# "" #????????????? | | #?????????????# """ # p ###??????????? | | #?????????????# """ # +??????????? | | #?????????????# "" + ###??????????? | | #?????????????# F"" # ###+##+#????????????? | | #?????????????# """ # #???????????????????? | | ##?????????????# ?# #???????????????????? | | ???????????????# ?# #???????????????????? | | ???????????????#######??# #???????????????????? | | ????????????????????????# #???????????????????? | | ????????????????????????# #???????????????????? | | ????????????????????????# #???????????????????? | | ????????????????????????# #???????????????????? | | ???????################## #???????????????????? | | ???????# #???????????????????? | | ???????# #???????????????????? | | ???????# #???????????????????? | | ???????# #???????????????????? | | ???????####+###### ##################????????????? | | ????????? ???# #??######## #????????????? | +----------------------------------------------------+ Best States ------------- Heat Dissipation 87 Energy Generation 45 Energy Capacity 790 Matter Stores 550 Matter Capacity 550 Sight Range 22 Robot Scan Range 15 Terrain Scan Density 10 Armor Coverage 225 Resistance: KI 20 Resistance: TH 20 Resistance: EX 20 Resistance: EM 20 Resistance: I 20 Resistance: S 20 Resistance: P 20 Evasion (%) 70 Targeting Accuracy 5 Target Analysis 12 Recoil Reduction 6 Matter Filtering 30 Energy Filtering 30 Offensive Hacking 10 Item Schematics ----------------- Combat Drone Bay | -7/Data Miner | Free Lgt. Regenerative Plating | -7/Data Miner | Free Cld. Aerolev Unit | -7/Data Miner | Free Thermal Defense Suite | -7/Data Miner | Free Com. Ion Cannon | -7/Data Miner | Free Cmb. Gravmag System | -7/Data Miner | Free Adv. Shield Generator | -7/Data Miner | Free Imp. Arc Projector | -7/Data Miner | Free Imp. Thermal Generator | -7/Data Miner | Free Field Propulsion Drive | -7/Data Miner | Free Lance | -7/Data Miner | Free Adv. Power Amplifier | -7/Data Miner | Free Centrium Wheel | -7/Data Miner | Free Robot Schematics ------------------ C-17 Slicer | -7/Data Miner | Free E-15 Imp | -7/Data Miner | Free R-10 Processor | -7/Data Miner | Free B-48 Gladiator | -7/Data Miner | Free Fabricated ------------ T-07 Excavator | x2 | -7/Factory | Preloaded Nova Cannon | x2 | -5/Factory | Preloaded C-17 Slicer | x3 | -2/Research Repaired ---------- Wheel | 12% | -6/Factory Alien Tech Used ----------------- None Achievements -------------- None Challenges ------------ None Game ------ Seed TransportSlugFocus Manual? 0 Play Time 01:32:25 Cumulative 158.6 hours Start 2025.10.08 @ 21:56:18 End 2025.10.12 @ 11:01:45 Sessions 9 Manual Loads 0 Difficulty Adventurer Special Mode None Game No. 127 Rogue 0 Adventurer 127 Explorer 0 Win Type - Total 4 Types 3/0/0/1/0/0/0/0/0/0 Lore% 64 Gallery% 62 Achievement% 58 Wizard Run 0 Options --------- Layout 1 ASCII 0 Keyboard 0 Movement Mouse Keybinds 0 Fullscreen 1 Font 24/Smallcaps Map View 50x35 Zoom Use 0% Tactical HUD 0 Map Filters NONE Filters NONE Steam 1 RUN: 0994634f-e115-4cd1-8a1c-0489cbb79c80